[Event "*** Titled Tuesday Blitz"]
[Site "Chess.com"]
[Date "2020.05.19"]
[Round "6"]
[White "quesfr"]
[Black "aa175"]
[Result "1-0"]
[WhiteElo "2287"]
[BlackElo "2419"]
[TimeControl "180+1"]
[EndTime "13:09:29 PDT"]
[Termination "quesfr won on time"]

1. e4 {[%clk 0:03:00.9]} 1... c5 {[%clk 0:02:58.7]} 2. c3 {[%clk 0:03:00.4]}
2... Nf6 {[%clk 0:02:57.5]} 3. e5 {[%clk 0:03:00.4]} 3... Nd5 {[%clk 0:02:57.2]}
4. Nf3 {[%clk 0:03:01]} 4... Nc6 {[%clk 0:02:56]} 5. Bc4 {[%clk 0:03:01]} 5...
Nb6 {[%clk 0:02:54.6]} 6. Bb3 {[%clk 0:03:01.6]} 6... d5 {[%clk 0:02:51.8]} 7.
exd6 {[%clk 0:03:01.2]} 7... Qxd6 {[%clk 0:02:51]} 8. Na3 {[%clk 0:03:01.8]}
8... a6 {[%clk 0:02:50.2]} 9. O-O {[%clk 0:02:55.5]} 9... Bf5 {[%clk 0:02:47.9]}
10. d4 {[%clk 0:02:54]} 10... cxd4 {[%clk 0:02:48.8]} 11. Nxd4 {[%clk
0:02:52.6]} 11... Nxd4 {[%clk 0:02:48]} 12. cxd4 {[%clk 0:02:52.8]} 12... e6
{[%clk 0:02:47.2]} 13. Qf3 {[%clk 0:02:49.4]} 13... Be7 {[%clk 0:02:19.4]} 14.
Qxb7 {[%clk 0:02:38.2]} 14... O-O {[%clk 0:02:18.4]} 15. Be3 {[%clk 0:02:20.3]}
15... Nd5 {[%clk 0:02:10.8]} 16. Nc4 {[%clk 0:02:11.2]} 16... Qb8 {[%clk
0:01:51.8]} 17. Qxb8 {[%clk 0:01:54.4]} 17... Raxb8 {[%clk 0:01:51.5]} 18. Ne5
{[%clk 0:01:49.1]} 18... Nxe3 {[%clk 0:01:52.3]} 19. fxe3 {[%clk 0:01:46.8]}
19... Bg5 {[%clk 0:01:44.2]} 20. Kf2 {[%clk 0:01:42.5]} 20... Rfc8 {[%clk
0:01:41]} 21. Rac1 {[%clk 0:01:40.2]} 21... Rxc1 {[%clk 0:01:36.7]} 22. Rxc1
{[%clk 0:01:39.2]} 22... h5 {[%clk 0:01:35.2]} 23. Rc6 {[%clk 0:01:29.6]} 23...
a5 {[%clk 0:01:29.6]} 24. Ra6 {[%clk 0:01:29.2]} 24... Rb5 {[%clk 0:01:08.7]}
25. Ra7 {[%clk 0:01:29.3]} 25... Bf6 {[%clk 0:00:55.3]} 26. Nxf7 {[%clk
0:01:06.2]} 26... a4 {[%clk 0:00:51.4]} 27. Nd6 {[%clk 0:01:06.3]} 27... Rb6
{[%clk 0:00:47.2]} 28. Nxf5 {[%clk 0:01:04.2]} 28... axb3 {[%clk 0:00:47.5]} 29.
Ng3 {[%clk 0:01:01.8]} 29... bxa2 {[%clk 0:00:29.7]} 30. Rxa2 {[%clk 0:01:02.7]}
30... g6 {[%clk 0:00:24.4]} 31. Ne4 {[%clk 0:01:02.1]} 31... Be7 {[%clk
0:00:22.9]} 32. Ke2 {[%clk 0:00:57.5]} 32... Rb3 {[%clk 0:00:20.1]} 33. Nd2
{[%clk 0:00:54.2]} 33... Rb8 {[%clk 0:00:17.6]} 34. b3 {[%clk 0:00:52.2]} 34...
Bb4 {[%clk 0:00:15.4]} 35. Ne4 {[%clk 0:00:47.6]} 35... Be7 {[%clk 0:00:15.1]}
36. Rb2 {[%clk 0:00:45.1]} 36... Ba3 {[%clk 0:00:14.2]} 37. Rb1 {[%clk 0:00:45]}
37... Be7 {[%clk 0:00:15.1]} 38. Kd3 {[%clk 0:00:44.3]} 38... Kf7 {[%clk
0:00:16]} 39. h3 {[%clk 0:00:38.6]} 39... Ke8 {[%clk 0:00:16.9]} 40. Nc5 {[%clk
0:00:37.6]} 40... Rb6 {[%clk 0:00:13.9]} 41. b4 {[%clk 0:00:37.4]} 41... Kd8
{[%clk 0:00:11.2]} 42. Kc4 {[%clk 0:00:37.8]} 42... Kc7 {[%clk 0:00:11.1]} 43.
Ra1 {[%clk 0:00:37.4]} 43... Bxc5 {[%clk 0:00:07.5]} 44. dxc5 {[%clk 0:00:37.2]}
44... Rb8 {[%clk 0:00:07.1]} 45. b5 {[%clk 0:00:37]} 45... Rd8 {[%clk
0:00:05.4]} 46. Ra7+ {[%clk 0:00:36.7]} 46... Kb8 {[%clk 0:00:04.7]} 47. Re7
{[%clk 0:00:36.7]} 47... Rd2 {[%clk 0:00:03.9]} 48. g4 {[%clk 0:00:36]} 48...
hxg4 {[%clk 0:00:03.4]} 49. hxg4 {[%clk 0:00:36.3]} 49... Rg2 {[%clk 0:00:03.3]}
50. Rxe6 {[%clk 0:00:36.3]} 50... Rxg4+ {[%clk 0:00:03.3]} 51. e4 {[%clk
0:00:36.5]} 51... Kc7 {[%clk 0:00:01.7]} 52. b6+ {[%clk 0:00:34.1]} 52... Kb7
{[%clk 0:00:01.4]} 53. Kb5 {[%clk 0:00:33.7]} 53... Rg1 {[%clk 0:00:01.4]} 54.
Re7+ {[%clk 0:00:33.8]} 1-0

[Event "*** Titled Tuesday Blitz"]
[Site "Chess.com"]
[Date "2020.05.19"]
[Round "6"]
[White "marszach123"]
[Black "PavelChernomordik"]
[Result "0-1"]
[WhiteElo "2195"]
[BlackElo "2390"]
[TimeControl "180+1"]
[EndTime "13:09:31 PDT"]
[Termination "PavelChernomordik won on time"]

1. e4 {[%clk 0:02:50.1]} 1... g6 {[%clk 0:02:56.8]} 2. d4 {[%clk 0:02:49.3]}
2... Bg7 {[%clk 0:02:54.9]} 3. Nc3 {[%clk 0:02:49.5]} 3... d6 {[%clk 0:02:54.9]}
4. f4 {[%clk 0:02:49.8]} 4... a6 {[%clk 0:02:54.1]} 5. Nf3 {[%clk 0:02:49.8]}
5... b5 {[%clk 0:02:54]} 6. Bd3 {[%clk 0:02:47.2]} 6... Nd7 {[%clk 0:02:52.5]}
7. a4 {[%clk 0:02:43.6]} 7... b4 {[%clk 0:02:51.5]} 8. Ne2 {[%clk 0:02:43.4]}
8... c5 {[%clk 0:02:51.7]} 9. c3 {[%clk 0:02:43.3]} 9... bxc3 {[%clk 0:02:50.4]}
10. bxc3 {[%clk 0:02:42.9]} 10... Qc7 {[%clk 0:02:51.3]} 11. O-O {[%clk
0:02:40.3]} 11... Bb7 {[%clk 0:02:48.3]} 12. e5 {[%clk 0:02:32.3]} 12... Nh6
{[%clk 0:02:44.3]} 13. Ng5 {[%clk 0:02:00.4]} 13... e6 {[%clk 0:02:21.7]} 14.
Ne4 {[%clk 0:01:30.1]} 14... dxe5 {[%clk 0:02:15.4]} 15. fxe5 {[%clk 0:01:29.2]}
15... Bxe4 {[%clk 0:02:06.6]} 16. Bxe4 {[%clk 0:01:28.4]} 16... Rd8 {[%clk
0:02:06.1]} 17. Bg5 {[%clk 0:01:23.5]} 17... Rc8 {[%clk 0:02:03.9]} 18. Rb1
{[%clk 0:00:55.5]} 18... Rb8 {[%clk 0:02:00]} 19. Qd2 {[%clk 0:00:50.4]} 19...
Nf5 {[%clk 0:01:47.2]} 20. g4 {[%clk 0:00:42.8]} 20... Ne7 {[%clk 0:01:30.9]}
21. Qf4 {[%clk 0:00:36.7]} 21... Rf8 {[%clk 0:01:01.5]} 22. Bf6 {[%clk
0:00:36.1]} 22... Bxf6 {[%clk 0:00:49.2]} 23. exf6 {[%clk 0:00:30.9]} 23... Qxf4
{[%clk 0:00:47.2]} 24. Nxf4 {[%clk 0:00:19.2]} 24... Nc8 {[%clk 0:00:45.5]} 25.
Bc6 {[%clk 0:00:14]} 25... Kd8 {[%clk 0:00:41.9]} 26. g5 {[%clk 0:00:07.2]}
26... Kc7 {[%clk 0:00:38.6]} 27. Bxd7 {[%clk 0:00:06.4]} 27... Rxb1 {[%clk
0:00:37.3]} 28. Rxb1 {[%clk 0:00:06.4]} 28... Kxd7 {[%clk 0:00:38.2]} 29. Rb8
{[%clk 0:00:06.7]} 29... cxd4 {[%clk 0:00:34.1]} 30. cxd4 {[%clk 0:00:05.8]}
30... Rd8 {[%clk 0:00:33.5]} 31. Kf2 {[%clk 0:00:04.4]} 31... Kc7 {[%clk
0:00:32.6]} 32. Rb4 {[%clk 0:00:02.8]} 32... Nd6 {[%clk 0:00:31.9]} 33. Ke3
{[%clk 0:00:02.4]} 33... Nf5+ {[%clk 0:00:30.3]} 34. Ke4 {[%clk 0:00:02.6]}
34... Nd6+ {[%clk 0:00:27.4]} 35. Ke3 {[%clk 0:00:02.7]} 35... Nf5+ {[%clk
0:00:26.3]} 36. Ke4 {[%clk 0:00:02.8]} 36... Kc6 {[%clk 0:00:26.6]} 37. Rc4+
{[%clk 0:00:02.4]} 37... Kb6 {[%clk 0:00:25.5]} 38. Rb4+ {[%clk 0:00:02.3]}
38... Ka5 {[%clk 0:00:22.1]} 39. Rb7 {[%clk 0:00:02]} 39... Kxa4 {[%clk
0:00:21.6]} 0-1

[Event "*** Titled Tuesday Blitz"]
[Site "Chess.com"]
[Date "2020.05.19"]
[Round "6"]
[White "Kildepiotr"]
[Black "26andrej26"]
[Result "1-0"]
[WhiteElo "2578"]
[BlackElo "2439"]
[TimeControl "180+1"]
[EndTime "13:09:32 PDT"]
[Termination "Kildepiotr won by resignation"]

1. Nf3 {[%clk 0:03:00.9]} 1... Nf6 {[%clk 0:02:58.6]} 2. g3 {[%clk 0:03:00.6]}
2... g6 {[%clk 0:02:58.4]} 3. Bg2 {[%clk 0:03:01]} 3... Bg7 {[%clk 0:02:59.1]}
4. O-O {[%clk 0:03:01.6]} 4... O-O {[%clk 0:02:59.8]} 5. d4 {[%clk 0:03:02.2]}
5... d6 {[%clk 0:03:00.2]} 6. Nbd2 {[%clk 0:03:02.3]} 6... Nc6 {[%clk
0:02:58.3]} 7. e4 {[%clk 0:03:02.5]} 7... e5 {[%clk 0:02:57.7]} 8. dxe5 {[%clk
0:03:02.5]} 8... dxe5 {[%clk 0:02:58.6]} 9. c3 {[%clk 0:03:02.1]} 9... b6 {[%clk
0:02:46.1]} 10. Qe2 {[%clk 0:02:57.6]} 10... Bb7 {[%clk 0:02:43.9]} 11. Rd1
{[%clk 0:02:57.4]} 11... Qe8 {[%clk 0:02:39.8]} 12. b4 {[%clk 0:02:52.2]} 12...
a6 {[%clk 0:02:22]} 13. a4 {[%clk 0:02:49.6]} 13... Nd8 {[%clk 0:02:01.5]} 14.
Ba3 {[%clk 0:02:46.3]} 14... Qe6 {[%clk 0:01:48]} 15. b5 {[%clk 0:02:31.9]}
15... Re8 {[%clk 0:01:46.6]} 16. Ng5 {[%clk 0:02:29.4]} 16... Qg4 {[%clk
0:01:42]} 17. Qxg4 {[%clk 0:02:12.7]} 17... Nxg4 {[%clk 0:01:42.9]} 18. Nc4
{[%clk 0:02:05.3]} 18... axb5 {[%clk 0:01:35.2]} 19. axb5 {[%clk 0:02:04.9]}
19... Nf6 {[%clk 0:01:27.9]} 20. f3 {[%clk 0:01:59.8]} 20... h6 {[%clk
0:01:20.4]} 21. Nh3 {[%clk 0:01:59.5]} 21... Ne6 {[%clk 0:01:07.6]} 22. Nf2
{[%clk 0:01:54.4]} 22... Red8 {[%clk 0:00:56.4]} 23. Nd3 {[%clk 0:01:43.7]}
23... Nd7 {[%clk 0:00:53.2]} 24. Be7 {[%clk 0:01:33]} 24... Re8 {[%clk
0:00:48.7]} 25. Bb4 {[%clk 0:01:29.9]} 25... Bf8 {[%clk 0:00:47.7]} 26. Ndxe5
{[%clk 0:01:09.4]} 26... Nxe5 {[%clk 0:00:45.7]} 27. Nxe5 {[%clk 0:01:09.1]}
27... Rxa1 {[%clk 0:00:39.4]} 28. Rxa1 {[%clk 0:01:08.3]} 28... Bxb4 {[%clk
0:00:39.1]} 29. cxb4 {[%clk 0:01:07.9]} 29... Nd4 {[%clk 0:00:39.6]} 30. Ng4
{[%clk 0:01:02.4]} 30... Kg7 {[%clk 0:00:36.6]} 31. Ra7 {[%clk 0:01:01.3]} 31...
Rb8 {[%clk 0:00:35.1]} 32. Ne3 {[%clk 0:00:54]} 32... Nxb5 {[%clk 0:00:32.5]}
33. Ra1 {[%clk 0:00:52.8]} 33... Rd8 {[%clk 0:00:32.9]} 34. Bf1 {[%clk 0:00:45]}
34... Nd4 {[%clk 0:00:28.6]} 35. Kf2 {[%clk 0:00:41.4]} 35... Ne6 {[%clk
0:00:28]} 36. Ra7 {[%clk 0:00:37.7]} 36... Bc6 {[%clk 0:00:20.3]} 37. Bc4 {[%clk
0:00:35.1]} 37... Ra8 {[%clk 0:00:12.1]} 38. Rxa8 {[%clk 0:00:32.3]} 38... Bxa8
{[%clk 0:00:13]} 39. Bxe6 {[%clk 0:00:32.1]} 39... fxe6 {[%clk 0:00:13.2]} 40.
e5 {[%clk 0:00:29.6]} 40... Bd5 {[%clk 0:00:11.3]} 41. Nxd5 {[%clk 0:00:24.1]}
41... exd5 {[%clk 0:00:10.6]} 42. b5 {[%clk 0:00:24.3]} 42... Kf7 {[%clk
0:00:09.5]} 43. Ke3 {[%clk 0:00:23.6]} 43... g5 {[%clk 0:00:07.7]} 44. Kd4
{[%clk 0:00:20.6]} 44... Ke6 {[%clk 0:00:08]} 45. g4 {[%clk 0:00:20.9]} 1-0

[Event "*** Titled Tuesday Blitz"]
[Site "Chess.com"]
[Date "2020.05.19"]
[Round "6"]
[White "boasovietica"]
[Black "TregubovP"]
[Result "0-1"]
[WhiteElo "2388"]
[BlackElo "2561"]
[TimeControl "180+1"]
[EndTime "13:09:33 PDT"]
[Termination "TregubovP won by resignation"]

1. e4 {[%clk 0:02:58.6]} 1... e6 {[%clk 0:03:00]} 2. b3 {[%clk 0:02:55.4]} 2...
d5 {[%clk 0:02:58.7]} 3. Bb2 {[%clk 0:02:55.8]} 3... dxe4 {[%clk 0:02:56.1]} 4.
Nc3 {[%clk 0:02:55]} 4... Nf6 {[%clk 0:02:55.4]} 5. g4 {[%clk 0:02:55.3]} 5...
Be7 {[%clk 0:02:45.5]} 6. Bg2 {[%clk 0:02:52.8]} 6... O-O {[%clk 0:02:43.6]} 7.
Nxe4 {[%clk 0:02:50.1]} 7... Nxe4 {[%clk 0:02:40.4]} 8. Bxe4 {[%clk 0:02:50]}
8... Bf6 {[%clk 0:02:40.5]} 9. d4 {[%clk 0:02:46.8]} 9... c5 {[%clk 0:02:39]}
10. Qd3 {[%clk 0:02:45.9]} 10... g6 {[%clk 0:02:23.3]} 11. O-O-O {[%clk
0:02:42.9]} 11... cxd4 {[%clk 0:02:15.9]} 12. Nf3 {[%clk 0:02:41.4]} 12... Nc6
{[%clk 0:02:15.3]} 13. h4 {[%clk 0:02:33.7]} 13... Nb4 {[%clk 0:02:08]} 14. Qc4
{[%clk 0:02:20]} 14... Nxa2+ {[%clk 0:02:05.3]} 15. Kb1 {[%clk 0:02:19.8]} 15...
Qa5 {[%clk 0:02:04.6]} 16. Nxd4 {[%clk 0:02:06.5]} 16... e5 {[%clk 0:01:50]} 17.
Nf3 {[%clk 0:01:57.5]} 17... Be6 {[%clk 0:01:48.3]} 18. Qa4 {[%clk 0:01:34.9]}
18... Nc3+ {[%clk 0:01:36.4]} 19. Bxc3 {[%clk 0:01:35]} 19... Qxc3 {[%clk
0:01:37]} 20. Rd3 {[%clk 0:01:34.8]} 20... Qc5 {[%clk 0:01:35.9]} 21. g5 {[%clk
0:01:30.7]} 21... Bg7 {[%clk 0:01:27.8]} 22. h5 {[%clk 0:01:30.5]} 22... Rfd8
{[%clk 0:01:25.7]} 23. hxg6 {[%clk 0:01:28.3]} 23... hxg6 {[%clk 0:01:22.5]} 24.
Rhd1 {[%clk 0:01:24]} 24... Rxd3 {[%clk 0:01:15.1]} 25. Rxd3 {[%clk 0:01:23.1]}
25... Rc8 {[%clk 0:01:14.7]} 26. Rd2 {[%clk 0:01:13.1]} 26... b5 {[%clk
0:01:12.6]} 27. Qa6 {[%clk 0:01:05.8]} 27... Bf5 {[%clk 0:01:01.2]} 28. Bxf5
{[%clk 0:00:45.1]} 28... gxf5 {[%clk 0:01:00.8]} 29. Qd6 {[%clk 0:00:43.3]}
29... e4 {[%clk 0:00:52]} 30. Qxc5 {[%clk 0:00:36.6]} 30... Rxc5 {[%clk
0:00:52.4]} 31. Nd4 {[%clk 0:00:34.5]} 31... Kh7 {[%clk 0:00:50.3]} 32. Ne2
{[%clk 0:00:27.2]} 32... Kg6 {[%clk 0:00:46.6]} 33. Rd6+ {[%clk 0:00:23.7]}
33... Kxg5 {[%clk 0:00:43.6]} 34. Rd7 {[%clk 0:00:24]} 34... a5 {[%clk
0:00:36.1]} 35. Rxf7 {[%clk 0:00:23.2]} 35... Be5 {[%clk 0:00:36.3]} 36. Rd7
{[%clk 0:00:20.7]} 36... f4 {[%clk 0:00:34.2]} 37. Kc1 {[%clk 0:00:18.5]} 37...
f3 {[%clk 0:00:32.3]} 38. Nd4 {[%clk 0:00:16.8]} 38... Bxd4 {[%clk 0:00:23.7]}
39. Rxd4 {[%clk 0:00:15.9]} 39... Kf4 {[%clk 0:00:24.2]} 40. Kd2 {[%clk
0:00:14.3]} 40... Ke5 {[%clk 0:00:23.9]} 41. Rd8 {[%clk 0:00:12.5]} 41... Rd5+
{[%clk 0:00:24.1]} 42. Rxd5+ {[%clk 0:00:11.5]} 42... Kxd5 {[%clk 0:00:24.5]}
43. c3 {[%clk 0:00:06.9]} 43... a4 {[%clk 0:00:24.1]} 44. c4+ {[%clk 0:00:06.6]}
44... Kc5 {[%clk 0:00:21.3]} 45. cxb5 {[%clk 0:00:04.5]} 45... a3 {[%clk
0:00:18.5]} 46. b4+ {[%clk 0:00:03.4]} 46... Kxb5 {[%clk 0:00:18.4]} 0-1

[Event "*** Titled Tuesday Blitz"]
[Site "Chess.com"]
[Date "2020.05.19"]
[Round "6"]
[White "turayev_shahruh17"]
[Black "wanyaland"]
[Result "0-1"]
[WhiteElo "2505"]
[BlackElo "2355"]
[TimeControl "180+1"]
[EndTime "13:09:34 PDT"]
[Termination "wanyaland won by resignation"]

1. e4 {[%clk 0:03:00.9]} 1... c5 {[%clk 0:02:59.5]} 2. Nc3 {[%clk 0:03:01]} 2...
d6 {[%clk 0:02:58.8]} 3. Bc4 {[%clk 0:03:01]} 3... Nf6 {[%clk 0:02:58]} 4. d3
{[%clk 0:03:00.9]} 4... e6 {[%clk 0:02:57.6]} 5. f4 {[%clk 0:03:00.7]} 5... a6
{[%clk 0:02:57.2]} 6. Nf3 {[%clk 0:02:58.6]} 6... Nc6 {[%clk 0:02:56.8]} 7. O-O
{[%clk 0:02:58.2]} 7... Be7 {[%clk 0:02:56.9]} 8. Qe1 {[%clk 0:02:55.8]} 8... d5
{[%clk 0:02:42.1]} 9. Bb3 {[%clk 0:02:51.9]} 9... b5 {[%clk 0:02:39.3]} 10. a3
{[%clk 0:02:25.6]} 10... c4 {[%clk 0:02:37.7]} 11. Ba2 {[%clk 0:02:25]} 11...
dxe4 {[%clk 0:02:28.4]} 12. dxe4 {[%clk 0:02:24.2]} 12... Bb7 {[%clk 0:02:21.1]}
13. Be3 {[%clk 0:02:20.1]} 13... Ng4 {[%clk 0:02:17.1]} 14. Rd1 {[%clk 0:02:19]}
14... Qc7 {[%clk 0:02:14.8]} 15. Kh1 {[%clk 0:02:16.2]} 15... Nxe3 {[%clk
0:02:10.6]} 16. Qxe3 {[%clk 0:02:16.6]} 16... O-O {[%clk 0:02:10.6]} 17. Ne2
{[%clk 0:02:07.9]} 17... Rad8 {[%clk 0:02:07]} 18. c3 {[%clk 0:02:00.5]} 18...
Rxd1 {[%clk 0:02:05.3]} 19. Rxd1 {[%clk 0:02:00.8]} 19... Rd8 {[%clk 0:02:05.9]}
20. Rxd8+ {[%clk 0:01:55.7]} 20... Qxd8 {[%clk 0:02:05]} 21. Ned4 {[%clk
0:01:47.4]} 21... e5 {[%clk 0:02:05.2]} 22. fxe5 {[%clk 0:01:41.6]} 22... Bc5
{[%clk 0:01:58.8]} 23. h3 {[%clk 0:01:38.4]} 23... Qe8 {[%clk 0:01:55.2]} 24.
Qg5 {[%clk 0:01:28.8]} 24... h6 {[%clk 0:01:54.3]} 25. Qg3 {[%clk 0:01:18.2]}
25... Ne7 {[%clk 0:01:47.6]} 26. Bb1 {[%clk 0:01:07.5]} 26... Ng6 {[%clk
0:01:43.7]} 27. Nf5 {[%clk 0:01:06.3]} 27... Qd7 {[%clk 0:01:27.5]} 28. N3d4
{[%clk 0:00:55.7]} 28... Kh7 {[%clk 0:01:18.3]} 29. Kh2 {[%clk 0:00:42.1]} 29...
Bf8 {[%clk 0:01:16]} 30. Nd6 {[%clk 0:00:36.6]} 30... Ba8 {[%clk 0:01:09.9]} 31.
N4f5 {[%clk 0:00:35.2]} 31... Qe6 {[%clk 0:01:06.1]} 32. Bc2 {[%clk 0:00:30.5]}
32... Nxe5 {[%clk 0:01:02.4]} 33. Bd1 {[%clk 0:00:18.6]} 33... g6 {[%clk
0:00:59.5]} 34. Bg4 {[%clk 0:00:07.7]} 34... Nxg4+ {[%clk 0:00:53.4]} 35. hxg4
{[%clk 0:00:06.1]} 35... gxf5 {[%clk 0:00:51]} 36. Nxf5 {[%clk 0:00:06.5]} 36...
Bxe4 {[%clk 0:00:49.3]} 37. Nd4 {[%clk 0:00:05.8]} 37... Bd6 {[%clk 0:00:40.9]}
38. Nxe6 {[%clk 0:00:05.2]} 38... Bxg3+ {[%clk 0:00:39.3]} 39. Kxg3 {[%clk
0:00:04.3]} 39... fxe6 {[%clk 0:00:40.2]} 40. Kf4 {[%clk 0:00:04.7]} 40... Bd5
{[%clk 0:00:39.9]} 41. Ke5 {[%clk 0:00:04.4]} 41... Kg6 {[%clk 0:00:39.9]} 42.
Kf4 {[%clk 0:00:03.7]} 42... Kf6 {[%clk 0:00:39.8]} 43. g3 {[%clk 0:00:03.2]}
43... e5+ {[%clk 0:00:40]} 44. Ke3 {[%clk 0:00:03.5]} 44... Kg5 {[%clk
0:00:40.5]} 0-1

[Event "*** Titled Tuesday Blitz"]
[Site "Chess.com"]
[Date "2020.05.19"]
[Round "6"]
[White "Novoselski"]
[Black "JozefKneht"]
[Result "0-1"]
[WhiteElo "2319"]
[BlackElo "2505"]
[TimeControl "180+1"]
[EndTime "13:09:34 PDT"]
[Termination "JozefKneht won on time"]

1. d4 {[%clk 0:03:00.9]} 1... d5 {[%clk 0:02:59.8]} 2. c4 {[%clk 0:03:00.4]}
2... e6 {[%clk 0:02:59.3]} 3. Nc3 {[%clk 0:03:00.6]} 3... Nf6 {[%clk 0:02:59.7]}
4. Bg5 {[%clk 0:02:59.7]} 4... Be7 {[%clk 0:02:59.3]} 5. e3 {[%clk 0:02:59.4]}
5... h6 {[%clk 0:02:59.9]} 6. Bh4 {[%clk 0:02:58]} 6... O-O {[%clk 0:02:59.1]}
7. Nf3 {[%clk 0:02:55.8]} 7... b6 {[%clk 0:02:58.8]} 8. cxd5 {[%clk 0:02:54.1]}
8... Nxd5 {[%clk 0:02:59.7]} 9. Bxe7 {[%clk 0:02:52.2]} 9... Qxe7 {[%clk
0:03:00.6]} 10. Bd3 {[%clk 0:02:49.3]} 10... Bb7 {[%clk 0:02:59.7]} 11. O-O
{[%clk 0:02:48.8]} 11... Nd7 {[%clk 0:02:58.6]} 12. Rc1 {[%clk 0:02:34.6]} 12...
c5 {[%clk 0:02:57.7]} 13. Bb1 {[%clk 0:02:21.1]} 13... Rfd8 {[%clk 0:02:50.5]}
14. Qe2 {[%clk 0:01:58.2]} 14... Rac8 {[%clk 0:02:48.3]} 15. Rfd1 {[%clk
0:01:56.4]} 15... cxd4 {[%clk 0:02:44.3]} 16. Nxd4 {[%clk 0:01:53]} 16... Nxc3
{[%clk 0:02:43]} 17. bxc3 {[%clk 0:01:48.5]} 17... Nc5 {[%clk 0:02:40.5]} 18.
Qg4 {[%clk 0:01:33.1]} 18... Rd5 {[%clk 0:02:27.2]} 19. Nf3 {[%clk 0:01:22.6]}
19... Rcd8 {[%clk 0:02:23.9]} 20. Rxd5 {[%clk 0:01:17.2]} 20... Rxd5 {[%clk
0:02:21.2]} 21. c4 {[%clk 0:01:14.6]} 21... Rd8 {[%clk 0:02:15.2]} 22. Nd4
{[%clk 0:01:07.6]} 22... Qf6 {[%clk 0:02:02.5]} 23. h3 {[%clk 0:00:56.2]} 23...
g6 {[%clk 0:01:54.1]} 24. Qg3 {[%clk 0:00:51.7]} 24... e5 {[%clk 0:01:47.2]} 25.
Nf3 {[%clk 0:00:45.5]} 25... Bxf3 {[%clk 0:01:46.4]} 26. gxf3 {[%clk 0:00:40.1]}
26... Rd2 {[%clk 0:01:42.5]} 27. h4 {[%clk 0:00:30.3]} 27... h5 {[%clk
0:01:41.8]} 28. Kg2 {[%clk 0:00:28.3]} 28... Kg7 {[%clk 0:01:41.6]} 29. a3
{[%clk 0:00:24.3]} 29... Nb3 {[%clk 0:01:18.2]} 30. Rc3 {[%clk 0:00:22.9]} 30...
Nc5 {[%clk 0:01:18]} 31. Rc1 {[%clk 0:00:21.8]} 31... Qd6 {[%clk 0:01:12.1]} 32.
Qg5 {[%clk 0:00:15.3]} 32... Ne6 {[%clk 0:01:10.7]} 33. Qg3 {[%clk 0:00:12.4]}
33... Nc5 {[%clk 0:01:08.2]} 34. Be4 {[%clk 0:00:08.2]} 34... Nxe4 {[%clk
0:01:02.3]} 35. fxe4 {[%clk 0:00:09.1]} 35... Qf6 {[%clk 0:00:55.2]} 36. c5
{[%clk 0:00:07.5]} 36... Rd7 {[%clk 0:00:41.2]} 37. cxb6 {[%clk 0:00:05.9]}
37... axb6 {[%clk 0:00:41.6]} 38. Rb1 {[%clk 0:00:05.4]} 38... Re7 {[%clk
0:00:37.6]} 39. Rb5 {[%clk 0:00:04.7]} 39... Re6 {[%clk 0:00:35.3]} 40. a4
{[%clk 0:00:05.6]} 40... Qe7 {[%clk 0:00:31.3]} 41. Rd5 {[%clk 0:00:04.8]} 41...
Qc7 {[%clk 0:00:29.8]} 42. Rb5 {[%clk 0:00:03.6]} 42... Qc3 {[%clk 0:00:28.8]}
43. Rd5 {[%clk 0:00:04.2]} 43... Qa1 {[%clk 0:00:26.1]} 44. Rb5 {[%clk
0:00:04.1]} 44... Qxa4 {[%clk 0:00:24.1]} 45. Rxe5 {[%clk 0:00:02.9]} 45... Qe8
{[%clk 0:00:23.8]} 46. Rxe6 {[%clk 0:00:02]} 46... Qxe6 {[%clk 0:00:24.7]} 47.
Qf4 {[%clk 0:00:02.6]} 47... Qf6 {[%clk 0:00:24.4]} 0-1

[Event "*** Titled Tuesday Blitz"]
[Site "Chess.com"]
[Date "2020.05.19"]
[Round "6"]
[White "Norival"]
[Black "vladislavkovalev"]
[Result "0-1"]
[WhiteElo "2675"]
[BlackElo "2905"]
[TimeControl "180+1"]
[EndTime "13:09:35 PDT"]
[Termination "vladislavkovalev won by resignation"]

1. d4 {[%clk 0:03:00.9]} 1... Nf6 {[%clk 0:03:00.1]} 2. Nf3 {[%clk 0:03:00.8]}
2... e6 {[%clk 0:03:00.4]} 3. Bg5 {[%clk 0:03:00.2]} 3... d5 {[%clk 0:03:00.8]}
4. e3 {[%clk 0:02:59]} 4... h6 {[%clk 0:03:01.2]} 5. Bh4 {[%clk 0:02:58.9]} 5...
c5 {[%clk 0:03:00.9]} 6. c3 {[%clk 0:02:59.2]} 6... Nc6 {[%clk 0:03:01.3]} 7.
Nbd2 {[%clk 0:02:58.6]} 7... cxd4 {[%clk 0:02:55.6]} 8. exd4 {[%clk 0:02:57.9]}
8... Be7 {[%clk 0:02:55.8]} 9. Bd3 {[%clk 0:02:57.4]} 9... Nh5 {[%clk
0:02:55.5]} 10. Bxe7 {[%clk 0:02:41.4]} 10... Qxe7 {[%clk 0:02:56.4]} 11. g3
{[%clk 0:02:41.3]} 11... Nf6 {[%clk 0:02:49]} 12. Qe2 {[%clk 0:02:39.3]} 12...
b6 {[%clk 0:02:34.7]} 13. Bb5 {[%clk 0:02:25.1]} 13... Bb7 {[%clk 0:02:32]} 14.
Ne5 {[%clk 0:02:24.1]} 14... Rc8 {[%clk 0:02:31.6]} 15. O-O {[%clk 0:02:17.3]}
15... O-O {[%clk 0:02:29.9]} 16. Ndf3 {[%clk 0:02:10.1]} 16... Ne4 {[%clk
0:02:27.1]} 17. Rfe1 {[%clk 0:02:03.2]} 17... Nxe5 {[%clk 0:02:22.1]} 18. Nxe5
{[%clk 0:02:02.8]} 18... Nd6 {[%clk 0:02:15.7]} 19. Bd3 {[%clk 0:02:02]} 19...
Qc7 {[%clk 0:02:08.9]} 20. a4 {[%clk 0:01:56.3]} 20... Rfe8 {[%clk 0:02:06.8]}
21. Qh5 {[%clk 0:01:48.3]} 21... Nc4 {[%clk 0:01:53]} 22. Bxc4 {[%clk
0:01:38.9]} 22... dxc4 {[%clk 0:01:53.9]} 23. f3 {[%clk 0:01:33.7]} 23... Rcd8
{[%clk 0:01:40.3]} 24. Re3 {[%clk 0:01:32.7]} 24... f6 {[%clk 0:01:38.6]} 25.
Ng6 {[%clk 0:01:25.2]} 25... Qf7 {[%clk 0:01:37.3]} 26. Nf4 {[%clk 0:01:21.2]}
26... Qxh5 {[%clk 0:01:35.6]} 27. Nxh5 {[%clk 0:01:22.1]} 27... Kf7 {[%clk
0:01:36.3]} 28. Kf2 {[%clk 0:01:15.9]} 28... e5 {[%clk 0:01:27.6]} 29. g4 {[%clk
0:01:04.8]} 29... g6 {[%clk 0:01:03.7]} 30. Ng3 {[%clk 0:01:02.6]} 30... exd4
{[%clk 0:01:04.3]} 31. Rxe8 {[%clk 0:01:00.2]} 31... Kxe8 {[%clk 0:01:05.2]} 32.
cxd4 {[%clk 0:00:54.2]} 32... Rxd4 {[%clk 0:01:06.1]} 33. Nf1 {[%clk 0:00:26.6]}
33... Rd3 {[%clk 0:01:04.7]} 34. Re1+ {[%clk 0:00:25.1]} 34... Kf7 {[%clk
0:01:03.8]} 35. Ne3 {[%clk 0:00:24.8]} 35... Bc6 {[%clk 0:00:53.6]} 36. Ke2
{[%clk 0:00:19.2]} 36... Rb3 {[%clk 0:00:47.1]} 37. Nxc4 {[%clk 0:00:18.9]}
37... Bd5 {[%clk 0:00:40.6]} 38. Ne3 {[%clk 0:00:15.2]} 38... Rxb2+ {[%clk
0:00:38]} 39. Kd3 {[%clk 0:00:15.6]} 39... Bxf3 {[%clk 0:00:38.6]} 40. Rc1
{[%clk 0:00:12.6]} 40... Ke6 {[%clk 0:00:29.7]} 41. Rc7 {[%clk 0:00:10.3]} 41...
a5 {[%clk 0:00:29.1]} 42. h4 {[%clk 0:00:08.2]} 42... Rb3+ {[%clk 0:00:27.4]}
43. Kd2 {[%clk 0:00:05.3]} 43... Rb4 {[%clk 0:00:27.9]} 44. h5 {[%clk
0:00:03.6]} 44... gxh5 {[%clk 0:00:28]} 45. gxh5 {[%clk 0:00:04.4]} 45... Bxh5
{[%clk 0:00:27.8]} 46. Rc6+ {[%clk 0:00:04.5]} 46... Ke5 {[%clk 0:00:20.6]} 47.
Nc4+ {[%clk 0:00:03.2]} 47... Kd5 {[%clk 0:00:20.8]} 0-1